fUST/lending_fUST_20260215
["ID","MTS","AMOUNT","RATE_DAILY","PERIOD"]
[405415061,1771149243568,364.31495264,0.00013821,2]
[405415062,1771149243745,500.0,0.00013273,2]
[405415063,1771149243789,501.00139806,0.00013821,2]
[405415070,1771149247469,5000.0,0.000156,2]
[405415073,1771149255239,5000.0,0.000156,2]
[405415074,1771149270592,5000.0,0.000156,2]
[405415075,1771149278307,5000.0,0.000156,2]
[405415076,1771149293180,5000.0,0.000156,2]
[405415078,1771149301261,5000.0,0.000156,2]
[405415081,1771149310232,686.19293744,0.00013821,2]
[405415082,1771149310319,500.0,0.00013273,2]
[405415083,1771149316281,5000.0,0.000156,2]
[405415084,1771149319955,151.0,1.16e-06,2]
[405415085,1771149320388,151.0,7.341e-05,3]
[405415086,1771149320763,151.0,0.00013879,4]
[405415087,1771149324555,1459.78953553,0.000156,2]
[405415088,1771149326598,769.47963998,0.00014768,2]
[405415089,1771149327001,600.0,0.00014221,2]
[405415090,1771149327479,300.0,0.00013673,2]
[405415091,1771149332210,500.0,0.00013273,2]
[405415092,1771149332258,1000.0,0.00013821,2]
[405415093,1771149332312,1500.0,0.00014368,2]
[405415094,1771149332372,2000.0,0.00014916,2]
[405415095,1771149332425,1575.36975885,0.00015464,2]
[405415096,1771149334101,500.0,0.00013273,2]
[405415097,1771149334139,1000.0,0.00013821,2]
[405415098,1771149334198,2000.0,0.00014916,2]
[405415099,1771149334236,1500.0,0.00014368,2]
[405415100,1771149334298,2500.0,0.00015464,2]
[405415112,1771149364684,501.26566308,0.00013273,2]
[405415113,1771149368049,619.07421439,0.00013699,2]
[405415116,1771149368912,500.0,0.00013699,2]
[405415117,1771149369071,171.02662932,0.00014247,2]
[405415118,1771149369101,500.0,0.00013699,2]
[405415119,1771149369133,1000.0,0.00014247,2]
[405415120,1771149369165,1500.0,0.00014795,2]
[405415121,1771149369193,1358.69722105,0.00015342,2]
[405415122,1771149370947,500.0,0.00013699,2]
[405415123,1771149370975,1000.0,0.00014247,2]
[405415124,1771149371031,1500.0,0.00014795,2]
[405415125,1771149371089,1781.61803281,0.00015342,2]
[405415126,1771149373104,439.68661129,0.00013699,2]
[405415128,1771149377244,500.0,0.00013699,2]
[405415129,1771149377285,590.27675419,0.00014247,2]
[405415131,1771149379672,500.0,0.00013273,2]
[405415132,1771149379722,1000.0,0.00013821,2]
[405415133,1771149379782,616.71178526,0.00014368,2]
[405415137,1771149380903,500.0,0.00013699,2]
[405415138,1771149380931,202.22382871,0.00014247,2]
[405415139,1771149383342,502.63944371,0.00013699,2]
[405415142,1771149390914,500.0,0.00013273,2]
[405415143,1771149390942,173.19877235,0.00014916,2]
[405415144,1771149390972,1000.0,0.00013821,2]
[405415145,1771149391027,1500.0,0.00014368,2]
[405415146,1771149393613,500.0,0.00013273,2]
[405415147,1771149393641,1000.0,0.00013821,2]
[405415148,1771149393676,1500.0,0.00014368,2]
[405415149,1771149393708,323.47716501,0.00014916,2]
[405415152,1771149412635,500.0,0.00013273,2]
[405415153,1771149412698,769.06713313,0.00013821,2]
[405415154,1771149423693,500.0,0.00013273,2]
[405415155,1771149423721,2500.0,0.00015464,2]
[405415156,1771149423756,1000.0,0.00013821,2]
[405415157,1771149423810,2000.0,0.00014916,2]
[405415158,1771149424038,1500.0,0.00014368,2]
[405415162,1771149533385,5000.0,0.000156,2]
[405415163,1771149534120,1193.2313835,0.00015011,2]
[405415166,1771149543486,500.0,0.00013699,2]
[405415167,1771149543521,472.07362653,0.00014247,2]
[405415168,1771149555566,5000.0,0.000156,2]
[405415169,1771149577627,5000.0,0.000156,2]
[405415170,1771149600405,5000.0,0.000156,2]
[405415268,1771149616464,151.0,0.000156,2]
[405415269,1771149617480,258.56773433,0.000156,2]
[405415270,1771149619780,500.0,0.00013273,2]
[405415271,1771149619838,1500.0,0.00014368,2]
[405415272,1771149619891,2000.0,0.00014916,2]
[405415273,1771149619949,1000.0,0.00013821,2]
[405415274,1771149620013,2500.0,0.00015464,2]
[405415276,1771149682153,-1472.45429026,0.0001584,2]
[405415277,1771149682166,-3527.54570974,0.0001584,2]
[405415278,1771149682175,-150.0,0.0001592,2]
[405415279,1771149682184,-300.0,0.00015999,2]
[405415280,1771149682194,-256.06,0.00016,2]
[405415281,1771149682207,-500.0,0.00016,2]
[405415282,1771149682217,-266.39429026,0.00016,2]
[405415283,1771149685661,503.06576096,0.00013699,2]
[405415284,1771149687852,502.28100272,0.00013699,2]
[405415285,1771149689010,500.0,0.00013699,2]
[405415286,1771149689052,1008.0150767,0.00014247,2]
[405415287,1771149732837,490.43191197,0.00013273,2]
[405415296,1771149880149,5000.0,0.000156,2]
[405415297,1771149903583,5000.0,0.000156,2]
[405415298,1771149917070,715.84785154,0.00015334,2]
[405415299,1771149919696,1288.52613278,0.00015334,2]
[405415300,1771149922603,2290.71312494,0.00015334,2]
[405415301,1771149925354,3579.23925772,0.00015334,2]
[405415302,1771149928045,5148.95042659,0.00015334,2]
[405415303,1771149930842,723.43253487,0.0001539,2]
[405415304,1771149933347,2893.7301395,0.0001539,2]
[405415308,1771150018788,2054.5408428,0.0001539,2]
[405415309,1771150021793,672.73832125,0.00015334,2]
[405415310,1771150026186,1210.92897826,0.00015334,2]
[405415311,1771150029149,2152.76262801,0.00015334,2]
[405415312,1771150031671,3360.32791466,0.00015334,2]
[405415316,1771150052148,-2835.39069104,0.00015837,2]
[405415317,1771150079569,375.37,9.99e-05,2]
[405415318,1771150079846,375.37,9.99e-05,2]
[405415319,1771150084295,500.0,0.00013273,2]
[405415320,1771150084347,1000.0,0.00013821,2]
[405415321,1771150084405,1171.15643933,0.00014368,2]
[405415322,1771150118107,5000.0,0.000156,2]
[405415323,1771150140124,5000.0,0.000156,2]
[405415324,1771150149084,-300.0,0.00015897,2]
[405415325,1771150149108,-150.0,0.00015917,2]
[405415326,1771150149129,-500.0,0.00015996,2]
[405415327,1771150149150,-353.8847707,0.00015996,2]
[405415328,1771150149173,-500.0,0.00015996,2]
[405415329,1771150149195,-500.0,0.00015996,2]
[405415330,1771150149217,-500.0,0.00015996,2]
[405415331,1771150149239,-500.0,0.00015996,2]
[405415332,1771150149263,-500.0,0.00015996,2]
[405415333,1771150149286,-500.0,0.00015996,2]
[405415334,1771150149330,-500.0,0.00015996,2]
[405415335,1771150149373,-500.0,0.00015996,2]
[405415336,1771150149415,-335.30095071,0.00015996,2]
[405415337,1771150149458,-500.0,0.00015996,2]
[405415338,1771150149501,-500.0,0.00015996,2]
[405415339,1771150149544,-500.0,0.00015996,2]
[405415340,1771150149575,-500.0,0.00015996,2]
[405415341,1771150149598,-500.0,0.00015996,2]
[405415342,1771150149620,-500.0,0.00015996,2]
[405415343,1771150149642,-500.0,0.00015996,2]
[405415344,1771150149664,-500.0,0.00015996,2]
[405415345,1771150149687,-500.0,0.00015996,2]
[405415346,1771150149710,-500.0,0.00015996,2]
[405415347,1771150149732,-500.0,0.00015996,2]
[405415348,1771150149754,-500.0,0.00015996,2]
[405415349,1771150149775,-500.0,0.00015996,2]
[405415350,1771150149797,-500.0,0.00015996,2]
[405415351,1771150149819,-500.0,0.00015996,2]
[405415352,1771150149843,-500.0,0.00015996,2]
[405415353,1771150149867,-500.0,0.00015996,2]
[405415354,1771150149891,-500.0,0.00015996,2]
[405415355,1771150149912,-500.0,0.00015996,2]
[405415356,1771150149934,-500.0,0.00015996,2]
[405415357,1771150149955,-569.74021769,0.00015996,2]
[405415358,1771150149980,-500.0,0.00015996,2]
[405415359,1771150150004,-500.0,0.00015996,2]
[405415360,1771150150026,-500.0,0.00015996,2]
[405415361,1771150150049,-500.0,0.00015996,2]
[405415362,1771150150072,-500.0,0.00015996,2]
[405415363,1771150150095,-500.0,0.00015996,2]
[405415364,1771150150136,-500.0,0.00015996,2]
[405415365,1771150150170,-500.0,0.00015996,2]
[405415366,1771150150196,-500.0,0.00015996,2]
[405415367,1771150150221,-500.0,0.00015996,2]
[405415368,1771150150244,-500.0,0.00015996,2]
[405415369,1771150150277,-500.0,0.00015997,2]
[405415370,1771150150322,-248.74591718,0.00015997,2]
[405415371,1771150150366,-486.3296386,0.00015997,2]
[405415372,1771150150412,-500.0,0.00015997,2]
[405415373,1771150150459,-500.0,0.00015997,2]
[405415374,1771150150505,-500.0,0.00015997,2]
[405415375,1771150150552,-500.0,0.00015997,2]
[405415376,1771150150596,-500.0,0.00015997,2]
[405415377,1771150150620,-500.0,0.00015997,2]
[405415378,1771150150643,-500.0,0.00015997,2]
[405415379,1771150150668,-500.0,0.00015997,2]
[405415380,1771150150690,-500.0,0.00015997,2]
[405415381,1771150150716,-500.0,0.00015997,2]
[405415382,1771150150740,-500.0,0.00015997,2]
[405415383,1771150150766,-500.0,0.00015997,2]
[405415384,1771150150790,-393.83871183,0.00015997,2]
[405415385,1771150150814,-500.0,0.00015997,2]
[405415386,1771150150836,-370.58899452,0.00015997,2]
[405415387,1771150150860,-500.0,0.00015997,2]
[405415388,1771150150881,-500.0,0.00015997,2]
[405415389,1771150150901,-500.0,0.00015997,2]
[405415390,1771150150920,-500.0,0.00015997,2]
[405415391,1771150150943,-500.0,0.00015997,2]
[405415392,1771150150964,-500.0,0.00015997,2]
[405415393,1771150150986,-500.0,0.00015997,2]
[405415394,1771150151009,-500.0,0.00015997,2]
[405415395,1771150151030,-500.0,0.00015997,2]
[405415396,1771150151052,-500.0,0.00015997,2]
[405415397,1771150151073,-500.0,0.00015997,2]
[405415398,1771150151096,-500.0,0.00015997,2]
[405415399,1771150151126,-500.0,0.00015997,2]
[405415400,1771150151163,-500.0,0.00015997,2]
[405415401,1771150151192,-500.0,0.00015997,2]
[405415402,1771150151225,-500.0,0.00015997,2]
[405415403,1771150151251,-500.0,0.00015997,2]
[405415404,1771150151281,-500.0,0.00015997,2]
[405415405,1771150151312,-500.0,0.00015997,2]
[405415406,1771150151356,-500.0,0.00015997,2]
[405415407,1771150151394,-500.0,0.00015997,2]
[405415408,1771150151427,-500.0,0.00015997,2]
[405415409,1771150151460,-500.0,0.00015997,2]
[405415410,1771150151604,-500.0,0.00015997,2]
[405415411,1771150151632,-500.0,0.00015997,2]
[405415412,1771150151664,-500.0,0.00015997,2]
[405415413,1771150151690,-438.28365097,0.00015997,2]
[405415414,1771150151720,-500.0,0.00015997,2]
[405415415,1771150151755,-500.0,0.00015997,2]
[405415416,1771150151789,-500.0,0.00015997,2]
[405415417,1771150151820,-500.0,0.00015997,2]
[405415418,1771150151846,-500.0,0.00015997,2]
[405415419,1771150151867,-500.0,0.00015997,2]
[405415420,1771150151887,-500.0,0.00015997,2]
[405415421,1771150151908,-500.0,0.00015997,2]
[405415422,1771150151928,-500.0,0.00015997,2]
[405415423,1771150151950,-500.0,0.00015997,2]
[405415424,1771150151971,-500.0,0.00015997,2]
[405415425,1771150151991,-500.0,0.00015997,2]
[405415426,1771150152013,-500.0,0.00015997,2]
[405415427,1771150152033,-500.0,0.00015997,2]
[405415428,1771150152056,-500.0,0.00015997,2]
[405415429,1771150152075,-500.0,0.00015997,2]
[405415430,1771150152097,-500.0,0.00015997,2]
[405415431,1771150152118,-300.0,0.00015997,2]
[405415432,1771150152138,-300.0,0.00015997,2]
[405415433,1771150152158,-300.0,0.00015997,2]
[405415434,1771150152179,-155.0,0.00015997,2]
[405415435,1771150152203,-1200.0,0.00015997,2]
[405415436,1771150152226,-50000.0,0.00015998,2]
[405415437,1771150152247,-192.7160133,0.00015998,2]
[405415438,1771150152267,-233.60570974,0.00016,2]
[405415439,1771150152287,-500.0,0.00016,2]
[405415440,1771150152311,-500.0,0.00016,2]
[405415441,1771150152332,-500.0,0.00016,2]
[405415442,1771150152354,-500.0,0.00016,2]
[405415443,1771150152374,-500.0,0.00016,2]
[405415444,1771150152394,-500.0,0.00016,2]
[405415445,1771150152414,-500.0,0.00016,2]
[405415446,1771150152432,-500.0,0.00016,2]
[405415447,1771150152452,-1013.85721122,0.00016,2]
[405415448,1771150152471,-181.63338525,0.00016003,2]
[405415449,1771150152491,-525.70834982,0.00016005,2]
[405415450,1771150152512,-151.0,0.00016011,2]
[405415451,1771150152532,-151.0,0.00016011,2]
[405415452,1771150152552,-151.0,0.00016011,2]
[405415453,1771150152571,-151.0,0.00016011,2]
[405415454,1771150152592,-151.0,0.00016011,2]
[405415455,1771150152612,-151.0,0.00016011,2]
[405415456,1771150152632,-292.339266,0.00016011,2]
[405415457,1771150152652,-382.6,0.00016131,3]
[405415458,1771150152673,-191.3,0.00016131,3]
[405415459,1771150152693,-186.30864655,0.000162,2]
[405415460,1771150152713,-500.0,0.00016274,2]
[405415461,1771150152733,-740.53755779,0.00016317,3]
[405415462,1771150152754,-765.2,0.00016418,3]
[405415463,1771150152775,-1530.39,0.00016428,3]
[405415464,1771150152795,-573.92,0.00016428,3]
[405415465,1771150152815,-500.0,0.00016438,2]
[405415466,1771150152834,-500.0,0.00016438,2]
[405415467,1771150152855,-294.57488063,0.00016438,2]
[405415468,1771150152875,-500.0,0.00016438,2]
[405415469,1771150152895,-500.0,0.00016438,2]
[405415470,1771150152913,-500.0,0.00016438,2]
[405415471,1771150152931,-500.0,0.00016438,2]
[405415472,1771150152948,-500.0,0.00016438,2]
[405415473,1771150152967,-500.0,0.00016438,2]
[405415474,1771150152986,-500.0,0.00016438,2]
[405415475,1771150153007,-500.0,0.00016438,2]
[405415476,1771150153027,-500.0,0.00016438,2]
[405415477,1771150153047,-500.0,0.00016438,2]
[405415478,1771150153069,-500.0,0.00016438,2]
[405415479,1771150153089,-500.0,0.00016438,2]
[405415480,1771150153110,-500.0,0.00016438,2]
[405415481,1771150153132,-500.0,0.00016438,2]
[405415482,1771150153152,-500.0,0.00016438,2]
[405415483,1771150153173,-500.0,0.00016438,2]
[405415484,1771150153193,-150.0,0.00016438,2]
[405415485,1771150153215,-500.0,0.00016548,2]
[405415486,1771150153235,-5381.682465,0.00016696,2]
[405415487,1771150153259,-154.48464515,0.0001676,2]
[405415488,1771150153278,-225.25,0.00016812,2]
[405415489,1771150153297,-225.25,0.00016812,2]
[405415490,1771150153320,-225.25,0.00016812,2]
[405415491,1771150153341,-225.25,0.00016812,2]
[405415492,1771150153363,-225.25,0.00016812,2]
[405415493,1771150153384,-225.25,0.00016812,2]
[405415494,1771150153407,-225.25,0.00016812,2]
[405415495,1771150153428,-174.95,0.00016812,2]
[405415496,1771150153450,-500.0,0.00016822,2]
[405415497,1771150153469,-200.39,0.00016864,2]
[405415498,1771150153490,-174.9868998,0.00016912,2]
[405415499,1771150153512,-151.0,0.00016986,5]
[405415500,1771150153532,-250.0,0.00016986,2]
[405415501,1771150153552,-328.91263078,0.00016989,2]
[405415502,1771150153573,-592.04273541,0.00016989,2]
[405415503,1771150153599,-1051.46789809,0.00016989,2]
[405415504,1771150153621,-170.15135081,0.00016989,2]
[405415505,1771150153641,-305.96615902,0.00016989,2]
[405415506,1771150153661,-311.80126432,0.00016989,2]
[405415507,1771150153680,-355.98795778,0.00016989,2]
[405415508,1771150153701,-30427.69352134,0.0001699,2]
[405415509,1771150153745,-69572.30647866,0.0001699,2]
[405415510,1771150153766,-311.154755,0.00017,2]
[405415511,1771150153786,-314.20131128,0.00017,2]
[405415512,1771150153806,-168.61715912,0.00017,2]
[405415513,1771150153824,-303.20737553,0.00017,2]
[405415514,1771150153842,-153.0,0.00017034,2]
[405415515,1771150153862,-153.0,0.00017034,2]
[405415516,1771150153881,-153.0,0.00017034,2]
[405415517,1771150153900,-153.0,0.00017034,2]
[405415518,1771150153922,-153.0,0.00017034,2]
[405415519,1771150153941,-276.0,0.00017034,2]
[405415520,1771150153961,-153.0,0.00017034,2]
[405415521,1771150153983,-153.0,0.00017034,2]
[405415522,1771150154002,-153.0,0.00017034,2]
[405415523,1771150154022,-153.0,0.00017034,2]
[405415524,1771150154041,-153.0,0.00017034,2]
[405415525,1771150154062,-153.0,0.00017034,2]
[405415526,1771150154084,-153.0,0.00017034,2]
[405415527,1771150154107,-153.0,0.00017034,2]
[405415528,1771150154129,-153.0,0.00017034,2]
[405415529,1771150154152,-153.0,0.00017034,2]
[405415530,1771150154173,-153.0,0.00017034,2]
[405415531,1771150154193,-153.0,0.00017034,2]
[405415532,1771150154214,-153.0,0.00017034,2]
[405415533,1771150154235,-153.0,0.00017034,2]
[405415534,1771150154256,-153.0,0.00017034,2]
[405415535,1771150154392,-153.0,0.00017034,2]
[405415536,1771150154414,-153.0,0.00017034,2]
[405415537,1771150154435,-153.0,0.00017034,2]
[405415538,1771150154458,-153.0,0.00017034,2]
[405415539,1771150154478,-153.0,0.00017034,2]
[405415540,1771150154499,-153.0,0.00017034,2]
[405415541,1771150154522,-153.0,0.00017034,2]
[405415542,1771150154542,-153.0,0.00017034,2]
[405415543,1771150154561,-153.0,0.00017034,2]
[405415544,1771150154582,-153.0,0.00017034,2]
[405415545,1771150154604,-153.0,0.00017034,2]
[405415546,1771150154625,-153.0,0.00017034,2]
[405415547,1771150154645,-153.0,0.00017034,2]
[405415548,1771150154666,-153.0,0.00017034,2]
[405415549,1771150154686,-153.0,0.00017034,2]
[405415550,1771150154706,-153.0,0.00017034,2]
[405415551,1771150154725,-153.0,0.00017034,2]
[405415552,1771150154745,-153.0,0.00017034,2]
[405415553,1771150154767,-153.0,0.00017034,2]
[405415554,1771150154788,-153.0,0.00017034,2]
[405415555,1771150154809,-153.0,0.00017034,2]
[405415556,1771150154829,-153.0,0.00017034,2]
[405415557,1771150154850,-153.0,0.00017034,2]
[405415558,1771150154873,-153.0,0.00017034,2]
[405415559,1771150154894,-153.0,0.00017034,2]
[405415560,1771150154914,-153.0,0.00017034,2]
[405415561,1771150154937,-153.0,0.00017034,2]
[405415562,1771150154956,-153.0,0.00017034,2]
[405415563,1771150154978,-153.0,0.00017034,2]
[405415564,1771150154999,-247.15818572,0.00017034,2]
[405415565,1771150155021,-550.29266217,0.00017052,2]
[405415566,1771150155046,-500.0,0.00017096,2]
[405415567,1771150155066,-151.0,0.000173,2]
[405415568,1771150155086,-179.68853596,0.00017356,7]
[405415569,1771150155106,-500.0,0.0001737,2]
[405415570,1771150155126,-420.0,0.00017383,2]
[405415571,1771150155145,-5381.682465,0.00017399,2]
[405415572,1771150155165,-163.0,0.0001749,2]
[405415573,1771150155184,-300.0,0.0001749,2]
[405415574,1771150155204,-884.5820776,0.00017498,2]
[405415575,1771150155224,-2883.9955558,0.00017498,2]
[405415576,1771150155243,-765.2,0.00017501,3]
[405415577,1771150155265,-382.6,0.00017501,3]
[405415578,1771150155284,-1098.6923279,0.00017532,2]
[405415579,1771150155304,-350.0,0.00017534,2]
[405415580,1771150155331,-1215.0,0.00017578,2]
[405415581,1771150155355,-300.0554027,0.00017579,2]
[405415582,1771150155377,-151.0,0.000176,2]
[405415583,1771150155400,-603.31317276,0.00017642,2]
[405415584,1771150155422,-500.0,0.00017644,2]
[405415585,1771150155444,-29902.0055376,0.00017747,2]
[405415586,1771150155467,-1530.4,0.00017788,3]
[405415587,1771150155487,-3060.78,0.00017798,3]
[405415588,1771150155508,-150.0,0.00017808,2]
[405415589,1771150155668,500.0,0.00015997,2]
[405415590,1771150162336,5000.0,0.00017721,2]
[405415591,1771150184772,5000.0,0.00017721,2]
[405415592,1771150195955,5000.0,0.00017432,2]
[405415593,1771150207058,5000.0,0.00017721,2]
[405415594,1771150211645,10000.0,0.00017058,2]
[405415595,1771150218016,342.57753977,0.00017474,2]
[405415596,1771150218919,4874.185551,0.00017608,2]
[405415597,1771150220537,2540.10913869,0.00017327,3]
[405415598,1771150223205,682.22551479,0.00017514,2]
[405415599,1771150229239,5000.0,0.00017721,2]
[405415643,1771150235703,800.0,0.0001778,2]
[405415644,1771150235730,800.0,0.00017642,2]
[405415645,1771150235756,800.0,0.00017745,2]
[405415646,1771150235812,800.0,0.00017817,2]
[405415647,1771150235844,800.0,0.00017667,2]
[405415648,1771150235924,800.0,0.0001765,2]
[405415649,1771150235967,800.0,0.00017699,2]
[405415650,1771150236018,800.0,0.00017771,2]
[405415651,1771150236898,358.95883961,0.00017693,2]
[405415659,1771150238068,-1228.00592662,0.0001784,2]
[405415660,1771150238079,-187.29657,0.00017841,2]
[405415661,1771150238088,-800.0,0.00017844,2]
[405415662,1771150238098,-800.0,0.0001785,2]
[405415663,1771150238110,-800.0,0.00017852,2]
[405415664,1771150238120,-151.0,0.000179,2]
[405415665,1771150238130,-177.0,0.00017917,2]
[405415666,1771150238140,-300.0,0.00017999,2]
[405415667,1771150238150,-4159.83393088,0.00018,2]
[405415668,1771150238162,-24862.95344693,0.00018,2]
[405415685,1771150243069,-32.81371194,0.00018,2]
[405415687,1771150244628,3219.90793745,0.0001782,2]
[405415695,1771150245808,-93.49130553,0.00018,2]
[405415709,1771150253405,5000.0,0.00017721,2]
[405415710,1771150261164,5000.0,0.00017721,2]
[405415711,1771150266136,387.31896065,0.00013273,2]
[405415712,1771150267132,500.0,0.00013273,2]
[405415713,1771150267560,500.0,0.00013699,2]
[405415714,1771150267604,502.46855386,0.00014247,2]
[405415715,1771150271401,500.0,0.00013273,2]
[405415716,1771150271432,500.0,0.00013821,2]
[405415717,1771150272498,500.0,0.00013273,2]
[405415718,1771150272536,1000.0,0.00013821,2]
[405415719,1771150272612,897.6056892,0.00014368,2]
[405415720,1771150272694,500.0,0.00013273,2]
[405415721,1771150272745,1000.0,0.00013821,2]
[405415722,1771150272802,1504.74963795,0.00014368,2]
[405415723,1771150272871,500.0,0.00013699,2]
[405415724,1771150272918,1000.0,0.00014247,2]
[405415725,1771150273729,503.6954193,0.00013699,2]
[405415726,1771150275460,500.0,0.00013699,2]
[405415727,1771150275488,1000.0,0.00014247,2]
[405415728,1771150275544,415.60342312,0.00014795,2]
[405415729,1771150276610,5000.0,0.00017721,2]
[405415730,1771150284801,5000.0,0.00017721,2]
[405415731,1771150287434,617.34558471,0.00013273,2]
[405415732,1771150288914,527.85110527,0.00013699,2]
[405415733,1771150297155,500.0,0.00013699,2]
[405415734,1771150297207,500.0,0.00014247,2]
[405415735,1771150299698,5000.0,0.00017721,2]
[405415736,1771150302351,501.3540148,0.00013273,2]
[405415737,1771150307424,975.66809402,0.00017721,2]
[405415738,1771150319260,197.89247189,0.00017474,2]
[405415739,1771150321907,1085.96371097,0.00017477,2]
[405415740,1771150322553,5000.0,0.00017721,2]
[405415741,1771150325998,500.0,0.00013273,2]
[405415742,1771150327488,500.0,0.00013699,2]
[405415743,1771150327518,1000.0,0.00014247,2]
[405415744,1771150327694,1647.18008496,0.00014795,2]
[405415745,1771150328419,300.0,0.00013673,2]
[405415746,1771150329303,500.0,0.00013273,2]
[405415747,1771150329363,1000.0,0.00013821,2]
[405415748,1771150329421,1500.0,0.00014368,2]
[405415749,1771150329475,1010.65295815,0.00014916,2]
[405415750,1771150330674,437.99717294,0.00013699,2]
[405415751,1771150331092,505.01026819,0.00013699,2]
[405415752,1771150331239,507.49550956,0.00013699,2]
[405415753,1771150332735,500.0,0.00013699,2]
[405415754,1771150332774,543.47751739,0.00014247,2]
[405415755,1771150334040,500.0,0.00013699,2]
[405415756,1771150334094,500.0,0.00014247,2]
[405415757,1771150334469,500.0,0.00013273,2]
[405415758,1771150334523,1000.0,0.00013821,2]
[405415759,1771150334576,1500.0,0.00014368,2]
[405415760,1771150334637,2000.0,0.00014916,2]
[405415761,1771150334690,2575.8869344,0.00015464,2]
[405415762,1771150337276,500.0,0.00013699,2]
[405415763,1771150337312,388.01744948,0.00014247,2]
[405415764,1771150506883,500.0,0.00013273,2]
[405415765,1771150506928,503.7380551,0.00013821,2]
[405415766,1771150510828,500.0,0.00013699,2]
[405415767,1771150510880,1000.0,0.00014247,2]
[405415768,1771150510937,600.34940187,0.00014795,2]
[405415769,1771150511293,500.0,0.00013273,2]
[405415770,1771150511349,1000.0,0.00013821,2]
[405415771,1771150511397,790.627,0.00014368,2]
[405415772,1771150512275,500.0,0.00013821,2]
[405415773,1771150513058,500.0,0.00013273,2]
[405415774,1771150513922,502.89690238,0.00013273,2]
[405415775,1771150524551,500.0,0.00013699,2]
[405415776,1771150524602,1000.0,0.00014247,2]
[405415777,1771150524643,1568.76098252,0.00014795,2]
[405415778,1771150543731,5000.0,0.000156,2]
[405415779,1771150567792,503.28746652,0.00013699,2]
[405415780,1771150576153,500.0,0.00013699,2]
[405415781,1771150576606,383.11224811,0.00013273,2]
[405415782,1771150578221,500.2543677,0.00013699,2]
[405415783,1771150584686,160.53889185,0.00013273,2]
[405415784,1771150688248,2023.920016,0.00015173,2]
[405415785,1771150743186,500.0,0.00013273,2]
[405415786,1771150743241,500.0,0.00013821,2]
[405415795,1771150810423,500.0,0.00013699,2]
[405415796,1771150846158,9611.61863,0.0001555,2]
[405415797,1771150894438,500.0,0.00013273,2]
[405415798,1771150894467,1000.0,0.00013821,2]
[405415799,1771150894520,1500.0,0.00014368,2]
[405415800,1771150894579,2000.0,0.00014916,2]
[405415801,1771150894629,500.0,0.00015464,2]
[405415802,1771150904522,501.06734588,0.00013699,2]
[405415803,1771150923003,5000.0,0.000156,2]
[405415804,1771150945119,5000.0,0.000156,2]
[405415805,1771150967073,5000.0,0.000156,2]